Cogmind - Beta 14 @@@ ROGUE MODE // 2024.09.16 @ 17:20:08 Player: Minty Result: Destroyed 0b10! Performance ------------- Evolutions (9) 4500 Regions Visited (19) 3800 Robots Destroyed (146) 730 Value Destroyed (7288) 7288 Prototype IDs (51) 1020 Alien Tech Used (5) 1000 Bonus (18805) 18805 TOTAL SCORE: 37143 Bonus ------- High Alert Combat Kills 1517 Follower Combat Kills 968 Met Warlord at Base 500 MAIN.C Attacked Warlord 500 Used Core Reset Matrix 3000 Met Warlord at Research 2000 Scanned by Researcher 500 Met Sigix 2000 Escaped with Sigix 5000 Win 3000 Friendly Fire -180 Cogmind --------- Core Integrity 1281/1600 Matter 12/300 Energy 98/100 System Corruption 9% Temperature Cool (0) Movement Core (50) Location Tau Ceti IV Orbit Parts ------- > --- POWER (2) -------- (None) > --- PROPULSION (8) --- Combat Linear Gravjet > --- UTILITY (10) ----- Advanced Coolant Injector Spectral Analyzer Hacking Suite Advanced Hacking Suite > --- WEAPON (5) ------- (None) > --- INVENTORY (5) ---- Heavy Regenerative Plating Z-bomb Delivery System Sigix Containment Pod Peak State ------------ > --- POWER ------------ Quantum Reactor Quantum Reactor > --- PROPULSION ------- Cooled Antigrav System Cooled Antigrav System Cooled Antigrav System Cooled Antigrav System Cooled Linear Gravjet Cooled Linear Gravjet Cooled Linear Gravjet > --- UTILITY ---------- Advanced Coolant Injector Precision Matter Filter SHELL Armor Advanced Hacking Suite Advanced Hacking Suite Improved System Shield Improved System Shield Improved Corruption Screen > --- WEAPON ----------- Heavy Dispersion Rifle Heavy Linear Accelerator > --- INVENTORY -------- Heavy Regenerative Plating Z-bomb Delivery System Sigix Containment Pod [Rating: 186] Favorites ----------- Power Quantum Reactor Engine Light Ion Engine Power Core Reinforced Fission Core Reactor Quantum Reactor Propulsion Cooled Antigrav System Treads Armored Medium Treads Leg Flexi-carbon Leg Wheel Armored Wheel Hover Unit Cooled Antigrav System Flight Unit Cesium-ion Thruster Utility Hacking Suite Device Advanced Coolant Injector Storage Medium Storage Unit Processor Experimental Targeting Computer Hackware Hacking Suite Protection Makeshift Light Armor Plating Artifact Phase Armor Weapon High-powered Field Laser Energy Gun High-powered Field Laser Energy Cannon EM Pulse Cannon Ballistic Gun Improved Heavy Machine Gun Ballistic Cannon Bore Cannon Launcher Enhanced Gamma Bomb Array Impact Weapon Hammer Build | -11 -10 -9 -8 -7 -7 -7 -6 -5 -5 -5 -4 -4 -4 -4 -3 -3 -2 -2 -1 ------- Run | Yrd Mat Mat Mat Fac Was Fac Fac Fac Upp War Pro Fac Upp Upp Res Qua Res Tes Acc Slots Evolved 18 | . . 2 2 2 . . 2 2 . . . 2 . . 2 . 2 . 2 Power 1 | . . . . 1 . . . . . . . . . . . . . . . Propulsion 6 | . . . . 1 . . 1 1 . . . 1 . . . . 1 . 1 Utility 8 | . . 2 2 . . . 1 1 . . . 1 . . . . 1 . . Weapon 3 | . . . . . . . . . . . . . . . 2 . . . 1 Parts Attached 286 | . 8 12 14 24 5 5 17 15 . 24 2 15 27 1 12 38 37 24 6 Power 31 | . 1 3 . 3 . 2 3 2 . 1 1 2 2 . 2 2 5 1 1 Engine 4 | . 1 . . . . . 1 1 . 1 . . . . . . . . . Core 11 | . . 3 . 3 . 2 . 1 . . . . 1 . . . . 1 . Reactor 16 | . . . . . . . 2 . . . 1 2 1 . 2 2 5 . 1 Propulsion 67 | . 3 4 1 13 3 . 4 4 . 4 1 1 6 1 3 9 3 6 1 Treads 6 | . 2 . . 1 . . . . . . . . 1 . . 2 . . . Leg 7 | . 1 . . . . . . 1 . . . . 3 1 . . . 1 . Wheel 8 | . . 4 1 3 . . . . . . . . . . . . . . . Hover 25 | . . . . 5 . . . 3 . . . . . . 1 7 3 5 1 Flight 21 | . . . . 4 3 . 4 . . 4 1 1 2 . 2 . . . . Utility 99 | . 2 3 5 5 2 2 5 3 . 9 . 9 8 . 6 6 24 9 1 Device 41 | . 1 1 4 3 2 . 1 . . 3 . 3 1 . 4 3 14 1 . Storage 5 | . 1 . . . . . 1 . . . . 1 1 . . 1 . . . Processor 13 | . . 1 1 . . 1 2 . . 2 . . 2 . 1 . 2 . 1 Hackware 16 | . . 1 . 2 . 1 1 2 . . . 1 . . 1 . 5 2 . Protection 23 | . . . . . . . . 1 . 4 . 4 4 . . 1 3 6 . Artifact 1 | . . . . . . . . . . . . . . . . 1 . . . Weapon 89 | . 2 2 8 3 . 1 5 6 . 10 . 3 11 . 1 21 5 8 3 Energy Gun 36 | . 1 2 6 3 . 1 2 1 . 9 . 2 2 . . 4 . 3 . Energy Cannon 2 | . . . 1 . . . . . . . . . . . . . 1 . . Ballistic Gun 10 | . . . . . . . 3 4 . 1 . . 2 . . . . . . Ballistic Cannon 20 | . . . . . . . . . . . . . 6 . 1 11 2 . . Launcher 16 | . . . 1 . . . . 1 . . . 1 1 . . 2 2 5 3 Special Weapon . | . . . . . . . . . . . . . . . . . . . . Impact Weapon 5 | . 1 . . . . . . . . . . . . . . 4 . . . Slashing Weapon . | . . . . . . . . . . . . . . . . . . . . Piercing Weapon . | . . . . . . . . . . . . . . . . . . . . Special Melee Weapon . | . . . . . . . . . . . . . . . . . . . . Unidentified Prototypes 41 | . . . 1 4 1 . 4 . . 5 1 1 . . 1 7 3 12 1 Corrupted Parts 1 | . . . . . . . . . . . . . . . . . . 1 . System Corruption 3 | . . . . . . . . . . . . . . . . . . 3 . Parts Lost 93 | . 2 3 3 . . 2 3 8 1 1 4 2 23 1 11 12 2 4 11 Power 11 | . 2 . 1 . . 1 . 1 . . 1 . 2 . 1 1 . 1 . Propulsion 30 | . . 2 . . . . 2 4 . . 2 1 5 1 3 2 . 1 7 Utility 37 | . . 1 1 . . 1 . 2 1 1 1 1 10 . 4 7 2 2 3 Weapon 15 | . . . 1 . . . 1 1 . . . . 6 . 3 2 . . 1 Highest Loss Streak 17 | . 1 2 3 . . 1 1 7 1 1 2 1 17 1 11 5 2 2 9 To Critical Strikes . | . . . . . . . . . . . . . . . . . . . . Average Slot Usage (%) 72 | . 87 88 93 84 92 92 90 63 62 84 86 75 29 52 68 43 66 77 62 Engine 1 | . 13 . . . . . 1 . . 4 4 . . . . . . . . Core 2 | . . 11 7 5 7 6 . . 5 5 . . . . . . . . 2 Reactor 2 | . . . . . . . 4 1 . . . 4 . . 5 1 7 7 4 Treads 1 | . 13 3 . . . . . . . . . . 1 5 3 2 . . . Leg 1 | . 14 . . . . . . . . . . . 2 10 8 . . . . Wheel 1 | . . 16 17 8 . . . . . . . . . . . . . . . Hover 7 | . . . . 2 11 . . 9 17 15 . . . . 1 7 26 29 22 Flight 5 | . . . . 4 10 23 24 4 . 7 22 19 4 . 1 . . . . Device 7 | . 10 10 17 4 7 7 5 5 3 2 5 8 . . 9 11 5 8 5 Storage 4 | . 14 11 9 7 7 7 6 5 5 5 5 2 . 5 3 2 . . . Processor 5 | . . 7 15 13 7 2 7 5 5 10 9 5 3 5 4 2 3 3 2 Hackware 10 | . . 7 9 18 23 27 24 17 11 11 11 15 4 . . . 11 17 13 Protection 3 | . . . . . . . . . 5 7 11 8 3 15 13 1 2 4 6 Energy Gun 6 | . 6 17 16 13 15 15 7 2 . 8 11 8 . . . 3 . 1 3 Ballistic Gun 1 | . 9 . . . . . 4 5 5 . . . . . . . . . . Ballistic Cannon 2 | . . . . . . . . . . . . . 4 10 12 3 6 1 . Peak Build Rating 186 | . 9 24 32 43 47 44 58 58 53 105 105 134 122 52 103 115 173 186 177 Average Rating 69 | . 7 19 29 38 43 40 52 47 52 79 97 120 30 49 78 74 135 167 147 On Entrance 59 | 6 6 8 24 25 43 44 42 54 53 50 105 85 114 52 50 31 56 162 177 Naked Turns . | . . . . . . . . . . . . . . . . . . . . Heaviest Build 109 | 10 17 22 24 27 27 27 30 39 39 53 53 61 40 40 96 55 109 103 80 Greatest Support 139 | 20 40 40 24 28 26 24 30 42 42 35 35 55 40 40 40 114 139 120 113 Greatest Overweight (x) 6 | . . 1 . 4 1 1 1 6 1 1 1 1 5 . 2 6 1 1 1 Average Overweight (x) . | . . . . . . . . . . . . . . . . . . . . Largest Inventory Capacity 10 | . 10 10 10 10 10 10 10 10 10 10 10 10 10 10 10 5 5 5 5 Average Capacity 8 | . 8 10 10 10 10 10 10 10 10 10 10 7 5 10 9 5 5 5 5 Most Carried 10 | . 10 10 10 10 10 10 10 10 10 10 10 10 10 9 10 5 5 5 5 Average Carried 7 | . 8 9 9 9 9 9 9 9 10 9 9 6 5 9 9 4 4 4 4 Final Capacity 10 | 8 10 10 10 10 10 10 10 10 10 10 10 10 10 10 5 5 5 5 5 Final Carried 10 | 6 10 10 10 9 10 10 10 10 10 10 10 10 9 9 5 5 5 5 5 Class Distribution -------------------- 26% | Mutant 23% | Hacker-Mutant 17% | Hacker-Sprinter 6% | Commander-Mutant 5% | Derelict-Tank 5% | Wizard-Sprinter 4% | Gunner 3% | Derelict-Mutant Dominant Class ---------------- Mutant | -10/Materials Mutant | -9/Materials Mutant | -8/Materials Hacker-Mutant | -7/Factory Hacker-Mutant | -7/Waste Hacker-Sprinter | -7/Factory Hacker-Sprinter | -6/Factory Hacker-Mutant | -5/Factory Hacker-Mutant | -5/Upper Caves Commander-Mutant | -5/Warlord Scavenger-Sprinter | -4/Proximity Caves Hacker-Mutant | -4/Factory Mutant | -4/Upper Caves Derelict-Mutant | -4/Upper Caves Derelict-Tank | -3/Research Mutant | -3/Quarantine Wizard-Sprinter | -2/Research Hacker-Sprinter | -2/Testing Hacker-Sprinter | -1/Access Resources | -11 -10 -9 -8 -7 -7 -7 -6 -5 -5 -5 -4 -4 -4 -4 -3 -3 -2 -2 -1 ----------- Run | Yrd Mat Mat Mat Fac Was Fac Fac Fac Upp War Pro Fac Upp Upp Res Qua Res Tes Acc Matter Collected 5202 | 200 122 96 100 161 208 40 360 173 20 357 10 143 559 57 377 620 924 576 99 Remotely . | . . . . . . . . . . . . . . . . . . . . Salvage Created 5889 | . 493 275 359 272 . 273 365 443 20 . 453 170 535 77 457 386 527 640 144 Parts 277 | . 30 28 23 11 . 10 21 20 . . 23 3 24 5 11 16 22 25 5 Haulers Intercepted 7 | . 1 . 1 1 . 2 1 . . . . . . . . . 1 . . Recyclers Shooed 3 | . . . . . . 1 2 . . . . . . . . . . . . Parts Field Recycled . | . . . . . . . . . . . . . . . . . . . . Retrieved Matter . | . . . . . . . . . . . . . . . . . . . . Parts Self-Destructed 38 | . . . . . . . . . . . 27 . 6 5 . . . . . Prevented . | . . . . . . . . . . . . . . . . . . . . Kills | -11 -10 -9 -8 -7 -7 -7 -6 -5 -5 -5 -4 -4 -4 -4 -3 -3 -2 -2 -1 ------- Run | Yrd Mat Mat Mat Fac Was Fac Fac Fac Upp War Pro Fac Upp Upp Res Qua Res Tes Acc Combat Hostiles Destroyed 106 | . 10 8 4 3 . 4 6 6 . . 9 4 11 4 2 13 9 8 5 Melee 3 | . 3 . . . . . . . . . . . . . . . . . . Guns 48 | . 6 8 2 3 . 4 6 5 . . 8 1 5 . . . . . . Cannons 20 | . . . . . . . . . . . . . 4 4 2 4 6 . . AOE 29 | . . . 2 . . . . 1 . . . 2 2 . . 8 3 6 5 Classes Destroyed 17 | . 3 3 3 1 . 1 . . . . 1 . 2 . . . . 2 1 Worker 8 | . . . . . . 1 1 2 . . . . . . . . 1 3 . Builder 5 | . . . 2 . . . 3 . . . . . . . . . . . . Hauler 7 | . 1 . 1 1 . 2 1 . . . . . . . . . 1 . . Recycler 7 | . . . 1 . . . . 1 . . . . . . 3 . 1 . 1 Operator 7 | . 1 2 1 1 . . . . . . . . . . . . 1 1 . Watcher 4 | . . 2 1 1 . . . . . . . . . . . . . . . Swarmer 25 | . . 3 . . . 1 3 . . . 4 . 4 4 2 . 4 . . Cutter 4 | . . . . . . . . . . . . . . . . . . . 4 Grunt 44 | . 10 4 2 2 . 2 3 5 . . 4 2 2 . . 1 3 4 . Duelist 3 | . . 1 1 . . . . . . . . . 1 . . . . . . Researcher 2 | . . . . . . . . . . . . . . . . . . 2 . Sentry 4 | . . . 1 . . . . 1 . . . . . . . . 2 . . Hunter 12 | . . . . 1 . 1 . . . . . 2 . . . 4 . 3 1 Programmer 2 | . . . . . . . . . . . 1 . . . . 1 . . . Quarantine Guard 4 | . . . . . . . . . . . . . . . . 4 . . . Lightning 3 | . . . . . . . . . . . . . . . . 3 . . . Striker 1 | . . . . . . . . . . . . . . . . . . 1 . Thug 2 | . . . . . . . . . . . . . 2 . . . . . . Savage 1 | . . . . . . . . . . . . . 1 . . . . . . Mutant 1 | . . . . . . . . . . . . . 1 . . . . . . Best Kill Streak 6 | . 3 4 4 2 . 3 4 4 . . 6 2 4 4 4 4 4 4 4 Combat Bots Only 6 | . 3 4 3 1 . 2 2 2 . . 6 2 4 4 2 4 4 4 4 Max Kills in Single Turn 4 | . 1 2 2 1 . 1 2 2 . . 1 1 2 1 2 4 3 3 4 Gunslinging 1 | . . 1 . . . . . . . . . . . . . . . . . Exploded 4 | . . . 1 . . . . 1 . . . 1 1 . . 4 3 2 4 Melee 1 | . 1 . . . . . . . . . . . . . . . . . . Uniques/NPCs Destroyed . | . . . . . . . . . . . . . . . . . . . . Combat | -11 -10 -9 -8 -7 -7 -7 -6 -5 -5 -5 -4 -4 -4 -4 -3 -3 -2 -2 -1 -------- Run | Yrd Mat Mat Mat Fac Was Fac Fac Fac Upp War Pro Fac Upp Upp Res Qua Res Tes Acc Hostile Shots Fired 1281 | . 82 36 64 17 . 12 39 95 3 2 67 55 229 35 101 112 47 143 142 Missed 455 | . 21 10 15 8 . 4 11 31 1 . 30 13 82 6 27 53 12 58 73 Damage Taken 19534 | . 755 329 775 143 . 157 528 1264 40 70 685 875 2969 428 1914 2841 1031 2454 2276 Core 3908 | . 100 41 260 71 . 54 120 379 . 35 92 95 1046 . 180 769 90 257 319 Absorbed by Shields 291 | . . . . . . . . . . . . . . . 291 . . . . Redirected to Shielding 462 | . . . . . . . . . . . 110 78 94 . . 180 . . . Ignored by Resistances 40 | . . . . . . . . . . . . . . . . 40 . . . Regen/Repaired (Parts) 1815 | . . . 90 . . 3 146 . . 72 . . . . . . . 523 981 Core Remaining (%) 63 | 100 60 89 52 . . 82 85 . . . 49 . . . . 27 . 76 80 Volleys Fired 443 | . 36 18 19 22 12 23 46 40 11 3 24 18 31 12 15 29 39 35 10 Largest 4 | . 2 2 2 2 2 2 2 2 1 2 2 2 2 2 3 4 2 2 2 Hottest 242 | . 70 126 126 124 120 75 80 120 33 140 140 140 135 114 171 242 149 110 110 Shots Fired 775 | . 72 36 37 39 22 38 88 58 11 5 48 36 47 19 41 61 58 43 16 Gun 520 | . 72 36 31 36 22 38 88 55 11 5 48 27 11 . . 18 . 14 8 Cannon 211 | . . . 2 3 . . . . . . . . 34 19 41 37 58 17 . Launcher 44 | . . . 4 . . . . 3 . . . 9 2 . . 6 . 12 8 Special . | . . . . . . . . . . . . . . . . . . . . Kinetic 335 | . 47 . . . . . 45 25 11 . . . 35 19 41 37 58 17 . Thermal 371 | . 25 36 31 36 22 38 43 30 . 4 48 27 6 . . 3 . 14 8 Explosive 24 | . . . 4 . . . . 3 . . . 9 2 . . . . 3 3 Electromagnetic 24 | . . . 2 3 . . . . . . . . . . . 5 . 9 5 Entropic 21 | . . . . . . . . . . 1 . . 4 . . 16 . . . Robot Hit Streak 22 | . 13 10 22 13 11 7 9 11 4 5 14 8 10 1 3 4 6 12 5 Robot Miss Streak 6 | . 2 1 1 2 2 2 4 2 2 . 2 4 3 4 6 6 3 5 3 Penetration Max 1 | . . . . . . . . . . . . . . . 1 1 . . . Secondary Targets 4 | . . 2 . . . . . . . . 2 . . . . . . . . Max Gunslinging Chain 1 | . . 1 . . . . . . . . 1 . . . . . . . . Shots Hit Robots 512 | . 61 24 29 28 18 28 58 43 8 4 35 26 27 5 12 38 32 27 9 Core Hits 279 | . 24 14 21 10 1 12 24 19 1 1 12 11 22 4 6 31 17 27 22 Critical Kills 10 | . . . . . . . . . 1 . . . 3 2 4 . . . . Critical Parts Destroyed 12 | . 3 . . . . . . . 1 . . . . 1 4 3 . . . Critical Strikes 46 | . 5 2 1 3 1 2 . 1 2 . 3 2 5 3 8 4 3 1 . Burn 17 | . 2 2 1 2 1 2 . 1 . . 3 2 1 . . . . . . Destroy 17 | . . . . . . . . . 2 . . . 4 3 8 . . . . Blast 5 | . . . . . . . . . . . . . . . . 1 3 1 . Corrupt 1 | . . . . 1 . . . . . . . . . . . . . . . Smash 3 | . 3 . . . . . . . . . . . . . . . . . . Detonate 3 | . . . . . . . . . . . . . . . . 3 . . . Melee Attacks 11 | . 11 . . . . . . . . . . . . . . . . . . Impact 11 | . 11 . . . . . . . . . . . . . . . . . . Slashing . | . . . . . . . . . . . . . . . . . . . . Piercing . | . . . . . . . . . . . . . . . . . . . . Sneak Attacks 1 | . 1 . . . . . . . . . . . . . . . . . . Combat Hostiles . | . . . . . . . . . . . . . . . . . . . . Follow-up Attacks . | . . . . . . . . . . . . . . . . . . . . Damage Inflicted 25130 | . 763 434 1101 550 550 603 1634 1296 53 78 837 1085 1095 161 455 6591 2858 3078 1908 Guns 7906 | . 496 434 474 469 550 603 1248 1050 53 78 837 456 277 . . 607 . 178 96 Cannons 4824 | . . . 40 81 . . . . . . . . 533 161 455 866 2164 524 . Explosions 11673 | . . . 587 . . . 386 246 . . . 629 272 . . 5118 611 2116 1708 Melee 261 | . 261 . . . . . . . . . . . . . . . . . . Ramming 466 | . 6 . . . . . . . . . . . 13 . . . 83 260 104 Kinetic 6111 | . 266 . . . . . 661 428 53 . . . 533 161 455 866 2164 524 . Thermal 10243 | . 230 434 474 469 550 603 587 622 . 78 837 456 113 . . 4484 . 210 96 Explosive 5460 | . . . 587 . . . 386 246 . . . 629 272 . . 136 611 1260 1333 Electromagnetic 1818 | . . . 40 81 . . . . . . . . . . . 498 . 824 375 Impact 261 | . 261 . . . . . . . . . . . . . . . . . . Slashing . | . . . . . . . . . . . . . . . . . . . . Piercing . | . . . . . . . . . . . . . . . . . . . . Entropic 771 | . . . . . . . . . . . . . 164 . . 607 . . . Highest Corruption 9 | . . . 3 . . 2 . . . . 1 1 8 8 . 6 1 9 9 Average Corruption 3 | . . . 2 . . 1 . . . . 1 1 4 8 . 5 1 2 8 Corruption Purged . | . . . . . . . . . . . . . . . . . . . . Corruption Blocked 16 | . . . . . . . . . . . . . . . 11 1 4 . . Effects 30 | . . . . . . 4 . . . . 1 1 5 3 . 3 3 5 5 Message Errors 7 | . . . . . . 2 . . . . . 1 . . . 1 1 1 1 Matter Fused 7 | . . . . . . 1 . . . . . . 2 1 . . . 1 2 Heat Flow Errors 3 | . . . . . . . . . . . . . 1 . . . 1 1 . Energy Discharges 4 | . . . . . . 1 . . . . . . . . . 1 . 1 1 Parts Rejected 2 | . . . . . . . . . . . . . . 1 . . . 1 . Parts Fused 1 | . . . . . . . . . . . . . . 1 . . . . . Data Loss (minor) 2 | . . . . . . . . . . . . . 1 . . . . . 1 Data Loss (major) 2 | . . . . . . . . . . . . . . . . 1 1 . . Alerts 2 | . . . . . . . . . . . 1 . 1 . . . . . . Overload Shots 16 | . . . . . 8 . . 8 . . . . . . . . . . . Overflow Damage 1419 | . 92 . 2 . . . 52 23 . . . 13 11 . 10 667 200 240 109 Projectiles 248 | . . . . . . . . . . . . . 11 . 10 . 157 70 . Explosions 1020 | . . . 2 . . . 52 23 . . . 13 . . . 667 43 111 109 Melee 151 | . 92 . . . . . . . . . . . . . . . . 59 . Knockbacks 32 | . 2 . . . . . . . . . . . 7 2 4 1 9 7 . Impact 3 | . 2 . . . . . . . . . . . . . . . . 1 . Kinetic 28 | . . . . . . . . . . . . . 7 1 4 1 9 6 . Secondary 1 | . . . . . . . . . . . . . . 1 . . . . . Self-Inflicted Damage 2009 | . . . 38 . . . . . . . . . 6 . . 965 128 552 320 Shots 35 | . . . 1 . . . . . . . . . . . . 2 1 24 7 Rammed 17 | . 3 . . . . . . . . . . . 4 . . 1 1 6 2 Targets Rammed 17 | . 3 . . . . . . . . . . . 4 . . 1 1 6 2 Kicked . | . . . . . . . . . . . . . . . . . . . . Crushed . | . . . . . . . . . . . . . . . . . . . . Highest Temperature 543 | . 342 183 117 6 90 66 12 18 54 54 165 195 177 210 315 199 240 543 74 Average Temperature 81 | . 98 49 52 4 46 19 7 10 24 29 57 104 49 134 143 98 102 95 32 Received Heat Transfer 3301 | . 441 90 378 36 . 27 135 522 18 . 148 60 767 . 100 48 144 297 90 Effects 11 | . 1 . . . . . . . . . . . . 4 3 . . 3 . Shutdowns 1 | . 1 . . . . . . . . . . . . . . . . . . Energy Bleed 1 | . . . . . . . . . . . . . . 1 . . . . . Interference 9 | . . . . . . . . . . . . . . 3 3 . . 3 . Siege Activations 1 | . . . . . . . . . . . . . . . . 1 . . . Total Turns 1 | . . . . . . . . . . . . . . . . 1 . . . Longest Duration 1 | . . . . . . . . . . . . . . . . 1 . . . Robots Corrupted 4 | . 1 . . . . . . . . . . . . . . 1 . 2 . Combat Hostiles 4 | . 1 . . . . . . . . . . . . . . 1 . 2 . Parts Fried 15 | . 4 . . . . . . . . . . . . . 1 2 . 8 . Impact Corruptions 6 | . 3 . . . . . . . . . . . . . . . . 3 . Robots Melted 2 | . . . . . . . . . . . 1 1 . . . . . . . Combat Hostiles 2 | . . . . . . . . . . . 1 1 . . . . . . . Parts Melted 14 | . . 1 1 2 . . 1 4 . . 3 2 . . . . . . . Heat Transferred 12374 | . 814 1073 1110 1073 955 1295 1147 1127 . 111 1517 888 259 . . 400 . 420 185 Parts Sabotaged . | . . . . . . . . . . . . . . . . . . . . Parts Stolen . | . . . . . . . . . . . . . . . . . . . . Parts Stripped . | . . . . . . . . . . . . . . . . . . . . Power Chain Reactions 2 | . . . . . . . . . . . . . . . . 1 . 1 . Alert | -11 -10 -9 -8 -7 -7 -7 -6 -5 -5 -5 -4 -4 -4 -4 -3 -3 -2 -2 -1 ------- Run | Yrd Mat Mat Mat Fac Was Fac Fac Fac Upp War Pro Fac Upp Upp Res Qua Res Tes Acc Peak Influence 1618 | . 239 368 428 328 176 741 1167 681 . . . 379 . . 80 1300 1335 1449 1618 Initial 779 | . . 68 155 194 114 95 264 472 . . . 140 . . 54 16 657 702 779 Average 476 | . 152 194 233 245 137 468 675 477 . . . 241 . . 56 448 1126 946 1118 Maximum Alert Level 5 | . 1 1 2 1 . 3 4 2 . . . 1 . . . 4 4 4 5 Low Security (%) 32 | . 55 51 43 9 100 12 . . . . . 39 . . 100 49 . . . Level 1 27 | . 44 48 51 90 . 38 15 16 . . . 60 . . . 21 . . . Level 2 9 | . . . 5 . . 16 21 82 . . . . . . . . 4 . . Level 3 17 | . . . . . . 33 60 . . . . . . . . 4 17 80 63 Level 4 13 | . . . . . . . 2 . . . . . . . . 24 77 19 31 Level 5 . | . . . . . . . . . . . . . . . . . . . 4 High Security . | . . . . . . . . . . . . . . . . . . . . Max Security . | . . . . . . . . . . . . . . . . . . . . Squads Dispatched 60 | . 4 2 4 3 . 5 9 3 . . . 2 . . 1 2 5 10 10 Investigation 25 | . 3 1 2 1 . 4 2 2 . . . 2 . . . 1 3 2 2 Extermination 1 | . . . . . . . . . . . . . . . . . . 1 . Reinforcement 25 | . 1 1 2 2 . 1 4 . . . . . . . 1 1 2 7 3 Assault 2 | . . . . . . . . 1 . . . . . . . . . . 1 Garrison 7 | . . . . . . . 3 . . . . . . . . . . . 4 Intercept . | . . . . . . . . . . . . . . . . . . . . Searches Triggered . | . . . . . . . . . . . . . . . . . . . . Construction Impeded 3 | . . . 1 . . 1 1 . . . . . . . . . . . . Haulers Reinforced 6 | . . . . 1 . . 3 . . . . . . . . . 2 . . Active Scanning Responses . | . . . . . . . . . . . . . . . . . . . . Cargo Convoy Interrupts . | . . . . . . . . . . . . . . . . . . . . Stealth | -11 -10 -9 -8 -7 -7 -7 -6 -5 -5 -5 -4 -4 -4 -4 -3 -3 -2 -2 -1 --------- Run | Yrd Mat Mat Mat Fac Was Fac Fac Fac Upp War Pro Fac Upp Upp Res Qua Res Tes Acc Distress Signals 27 | . . . 2 . . 1 1 1 . 3 . . . . 2 1 12 3 1 Communications Jammed . | . . . . . . . . . . . . . . . . . . . . Distress Signals . | . . . . . . . . . . . . . . . . . . . . Times Spotted 343 | . 18 16 19 6 6 16 16 21 4 4 18 6 17 4 14 32 27 52 47 Peak Tracking Total 15 | . 4 5 11 2 3 3 5 8 4 4 5 2 9 4 10 12 7 15 11 Tactical Retreats 43 | . . . 2 . . 1 2 4 1 1 2 . 2 . 3 7 5 4 9 Traps | -11 -10 -9 -8 -7 -7 -7 -6 -5 -5 -5 -4 -4 -4 -4 -3 -3 -2 -2 -1 ------- Run | Yrd Mat Mat Mat Fac Was Fac Fac Fac Upp War Pro Fac Upp Upp Res Qua Res Tes Acc Traps Triggered 14 | . . . 3 4 . . . 1 . . . 1 . . . 1 . 4 . Indirectly 1 | . . . . . . . . . . . . . . . . . . 1 . Trap Hack Attempts . | . . . . . . . . . . . . . . . . . . . . Triggered . | . . . . . . . . . . . . . . . . . . . . Disarmed 3 | . . . . . . . . 3 . . . . . . . . . . . Reprogrammed . | . . . . . . . . . . . . . . . . . . . . Reused . | . . . . . . . . . . . . . . . . . . . . Traps Extracted . | . . . . . . . . . . . . . . . . . . . . Installed . | . . . . . . . . . . . . . . . . . . . . Triggered 15 | . . . . . . . . . 1 11 3 . . . . . . . . Objects Rigged 12 | . . . . . . . 12 . . . . . . . . . . . . Exploded 1 | . . . . . . . 1 . . . . . . . . . . . . Machines | -11 -10 -9 -8 -7 -7 -7 -6 -5 -5 -5 -4 -4 -4 -4 -3 -3 -2 -2 -1 ---------- Run | Yrd Mat Mat Mat Fac Was Fac Fac Fac Upp War Pro Fac Upp Upp Res Qua Res Tes Acc Machines Disabled 55 | . . . 3 . . 1 13 . . 1 . 3 . 2 . 19 4 7 2 Max in Single Turn 10 | . . . 1 . . . 6 . . 1 . 2 . 1 . 10 2 2 1 Garrison Access 1 | . . . . . . . . . . . . . . . . . . 1 . Energy Cycler 1 | . . . . . . . . . . . . . . . . . . . 1 Machines Repaired . | . . . . . . . . . . . . . . . . . . . . Machines Dismantled . | . . . . . . . . . . . . . . . . . . . . Machines Sabotaged . | . . . . . . . . . . . . . . . . . . . . Overloaded Fab Kills . | . . . . . . . . . . . . . . . . . . . . Hacking | -11 -10 -9 -8 -7 -7 -7 -6 -5 -5 -5 -4 -4 -4 -4 -3 -3 -2 -2 -1 --------- Run | Yrd Mat Mat Mat Fac Was Fac Fac Fac Upp War Pro Fac Upp Upp Res Qua Res Tes Acc Machines Accessed 53 | . 7 1 2 1 . 4 3 4 . 3 . 2 1 . . 8 4 6 7 Terminals 32 | . 7 . 1 1 . 1 1 2 . . . 2 . . . 8 2 4 3 Fabricators 4 | . . . . . . 1 . 1 . . . . . . . . . . 2 Repair Stations 5 | . . . 1 . . . 1 1 . . . . . . . . . 1 1 Recycling Units 4 | . . . . . . 2 1 . . . . . . . . . . . 1 Scanalyzers 2 | . . 1 . . . . . . . . . . . . . . 1 . . Garrison Access 2 | . . . . . . . . . . . . . . . . . 1 1 . Total Hacks 155 | . 27 3 7 2 . 12 8 22 . 7 . 7 1 . . 19 8 14 18 Successful 90 | . 13 3 6 1 . 6 4 15 . 7 . 6 1 . . 7 3 9 9 Failed 65 | . 14 . 1 1 . 6 4 7 . . . 1 . . . 12 5 5 9 Catastrophic 9 | . 3 . . . . . . . . . . . . . . 1 4 1 . Database Lockouts . | . . . . . . . . . . . . . . . . . . . . Manual 67 | . 24 1 . 2 . 4 3 12 . . . 4 . . . 2 3 5 7 Terminals 104 | . 27 . 2 2 . 3 3 15 . . . 7 . . . 19 4 12 10 Fabricators 12 | . . . . . . 4 . 4 . . . . . . . . . . 4 Repair Stations 15 | . . . 5 . . . 3 3 . . . . . . . . . 1 3 Recycling Units 8 | . . . . . . 5 2 . . . . . . . . . . . 1 Scanalyzers 5 | . . 3 . . . . . . . . . . . . . . 2 . . Garrison Access 3 | . . . . . . . . . . . . . . . . . 2 1 . Terminal Hacks 47 | . 6 . 2 1 . 1 . 9 . 7 . 5 1 . . 7 1 6 1 Record 2 | . . . . . . . . . . . . . . . . 1 1 . . Robot Schematic 1 | . . . . . . . . . . . . 1 . . . . . . . Robot Analysis 3 | . 3 . . . . . . . . . . . . . . . . . . Prototype ID Bank 7 | . . . 1 . . . . . . 5 . . . . . 1 . . . Open Door 6 | . . . . . . . . . . 2 . . 1 . . 2 . 1 . Level Access Points 1 | . . . . . . 1 . . . . . . . . . . . . . Branch Access Points 2 | . . . . . . . . 1 . . . . . . . . . 1 . Terminal Index 4 | . 1 . . . . . . 1 . . . 1 . . . . . 1 . Garrison Index 1 | . . . . . . . . . . . . . . . . . . 1 . Alert Level 6 | . 1 . . . . . . 1 . . . 2 . . . 1 . 1 . Unreport Threat 6 | . . . . . . . . 2 . . . 1 . . . 2 . 1 . Locate Traps 3 | . 1 . . . . . . 1 . . . . . . . . . . 1 Disarm Traps 2 | . . . . . . . . 2 . . . . . . . . . . . Recall Investigation 1 | . . . . 1 . . . . . . . . . . . . . . . Recall Reinforcements 1 | . . . 1 . . . . . . . . . . . . . . . . Zone Layout 1 | . . . . . . . . 1 . . . . . . . . . . . Fabricator Hacks 7 | . . . . . . 1 . 3 . . . . . . . . . . 3 Network Status 2 | . . . . . . . . 1 . . . . . . . . . . 1 Load Schematic 2 | . . . . . . . . 1 . . . . . . . . . . 1 Build 3 | . . . . . . 1 . 1 . . . . . . . . . . 1 Repair Station Hacks 7 | . . . 4 . . . 1 . . . . . . . . . . 1 1 Scan Component 4 | . . . 2 . . . 1 . . . . . . . . . . . 1 Repair 2 | . . . 2 . . . . . . . . . . . . . . . . Refit 1 | . . . . . . . . . . . . . . . . . . 1 . Recycling Unit Hacks 6 | . . . . . . 3 2 . . . . . . . . . . . 1 Process 1 | . . . . . . 1 . . . . . . . . . . . . . Report Inventory 4 | . . . . . . 2 1 . . . . . . . . . . . 1 Retrieve Components 1 | . . . . . . . 1 . . . . . . . . . . . . Scanalyzer 2 | . . 2 . . . . . . . . . . . . . . . . . Insert Component 1 | . . 1 . . . . . . . . . . . . . . . . . Analyze 1 | . . 1 . . . . . . . . . . . . . . . . . Garrison Access Hacks 1 | . . . . . . . . . . . . . . . . . . 1 . Seal Access 1 | . . . . . . . . . . . . . . . . . . 1 . Unauthorized Hacks 20 | . 7 1 . . . 1 1 3 . . . 1 . . . . 2 1 3 Terminals 15 | . 7 . . . . . 1 2 . . . 1 . . . . 1 1 2 Track 2 | . 2 . . . . . . . . . . . . . . . . . . Botnet 11 | . 4 . . . . . . 2 . . . 1 . . . . 1 1 2 Detonate 1 | . . . . . . . 1 . . . . . . . . . . . . Operators 1 | . 1 . . . . . . . . . . . . . . . . . . Fabricators 1 | . . . . . . . . 1 . . . . . . . . . . . Prioritize 1 | . . . . . . . . 1 . . . . . . . . . . . Repair Stations 1 | . . . . . . . . . . . . . . . . . . . 1 Patch 1 | . . . . . . . . . . . . . . . . . . . 1 Recycling Units 1 | . . . . . . 1 . . . . . . . . . . . . . Tunnel 1 | . . . . . . 1 . . . . . . . . . . . . . Scanalyzers 2 | . . 1 . . . . . . . . . . . . . . 1 . . Extract 2 | . . 1 . . . . . . . . . . . . . . 1 . . Garrison Access . | . . . . . . . . . . . . . . . . . . . . Data Cores Recovered 1 | . . 1 . . . . . . . . . . . . . . . . . Used . | . . . . . . . . . . . . . . . . . . . . Hacking Detections 40 | . 7 . 2 1 . 3 2 4 . . . 2 . . . 6 4 3 6 Full Trace Events 18 | . 4 . 1 . . 3 2 2 . . . 1 . . . 1 2 1 1 Feedback Events 5 | . . . . . . 2 . . . . . 1 . . . 1 1 . . Corruption 5 | . . . . . . 2 . . . . . 1 . . . 1 1 . . Feedback Blocked . | . . . . . . . . . . . . . . . . . . . . Robot Schematics Acquired 4 | . . . . . . . . . . . . 1 . . . . . 3 . Robots Built 6 | . . . . . . 3 . . . . . . . . . . . . 3 Authchips . | . . . . . . . . . . . . . . . . . . . . Time 141 | . . . . . . 67 . . . . . . . . . . . . 74 Total Robot Build Rating 39 | . . . . . . 12 . . . . . . . . . . . . 27 Part Schematics Acquired 13 | . . 4 . . . . . . . . . . . . . . 3 6 . Parts Built 1 | . . . . . . . . 1 . . . . . . . . . . . Authchips . | . . . . . . . . . . . . . . . . . . . . Time 36 | . . . . . . . . 36 . . . . . . . . . . . Total Part Build Rating 3 | . . . . . . . . 3 . . . . . . . . . . . Parts Repaired 2 | . . . 2 . . . . . . . . . . . . . . . . Time 58 | . . . 58 . . . . . . . . . . . . . . . . Parts Recycled . | . . . . . . . . . . . . . . . . . . . . Recycled Matter 33 | . . . . . . 33 . . . . . . . . . . . . . Retrieved Matter . | . . . . . . . . . . . . . . . . . . . . Retrieved Components 1 | . . . . . . . 1 . . . . . . . . . . . . Parts Scanalyzed 1 | . . 1 . . . . . . . . . . . . . . . . . Part Schematics Acquired 1 | . . 1 . . . . . . . . . . . . . . . . . Parts Damaged . | . . . . . . . . . . . . . . . . . . . . Bothacking | -11 -10 -9 -8 -7 -7 -7 -6 -5 -5 -5 -4 -4 -4 -4 -3 -3 -2 -2 -1 ------------ Run | Yrd Mat Mat Mat Fac Was Fac Fac Fac Upp War Pro Fac Upp Upp Res Qua Res Tes Acc Used RIF Installer . | . . . . . . . . . . . . . . . . . . . . Robots Hacked . | . . . . . . . . . . . . . . . . . . . . Non-combat . | . . . . . . . . . . . . . . . . . . . . Combat . | . . . . . . . . . . . . . . . . . . . . Robot Hacks Applied . | . . . . . . . . . . . . . . . . . . . . Relay Couplers Released . | . . . . . . . . . . . . . . . . . . . . Fabnet Peak Effective % . | . . . . . . . . . . . . . . . . . . . . Robots Rewired 6 | . . . . . . . . . . 5 . . . . . . 1 . . Allies Hacked . | . . . . . . . . . . . . . . . . . . . . Hacks Repelled . | . . . . . . . . . . . . . . . . . . . . Allies | -11 -10 -9 -8 -7 -7 -7 -6 -5 -5 -5 -4 -4 -4 -4 -3 -3 -2 -2 -1 -------- Run | Yrd Mat Mat Mat Fac Was Fac Fac Fac Upp War Pro Fac Upp Upp Res Qua Res Tes Acc Total Allies 30 | . . . . . 18 3 . . . 5 . . . . . . 1 . 3 Largest Group 18 | . . . . . 18 12 11 3 . 5 3 . . . . . 1 . 3 Highest-Rated Group 444 | . . . . . 444 336 316 85 . 221 123 . . . . . 58 . 174 Highest-Rated Ally 58 | . . . . . 35 35 35 32 . 49 41 . . . . . 58 . 58 Total Orders . | . . . . . . . . . . . . . . . . . . . . Ally Attacks 332 | . . . . . 157 41 106 . . 3 10 . . . . . 5 . 10 Total Damage 9487 | . . . . . 5098 1212 2138 . . 117 471 . . . . . 90 . 361 Kills 40 | . . . . . 13 11 14 . . . 2 . . . . . . . . Allies Corrupted . | . . . . . . . . . . . . . . . . . . . . Allies Melted 1 | . . . . . . . . . . . . . . . . . 1 . . Intel | -11 -10 -9 -8 -7 -7 -7 -6 -5 -5 -5 -4 -4 -4 -4 -3 -3 -2 -2 -1 ------- Run | Yrd Mat Mat Mat Fac Was Fac Fac Fac Upp War Pro Fac Upp Upp Res Qua Res Tes Acc Robot Analysis Total 3 | . 3 . . . . . . . . . . . . . . . . . . Derelict Logs Recovered 2 | . . . . . . . . . . . 1 . 1 . . . . . . Drone Launches . | . . . . . . . . . . . . . . . . . . . . Drone Recoveries . | . . . . . . . . . . . . . . . . . . . . Exploration | -11 -10 -9 -8 -7 -7 -7 -6 -5 -5 -5 -4 -4 -4 -4 -3 -3 -2 -2 -1 ------------- Run | Yrd Mat Mat Mat Fac Was Fac Fac Fac Upp War Pro Fac Upp Upp Res Qua Res Tes Acc Turns Passed 7222 | . 509 320 336 372 147 400 446 421 127 722 180 280 421 94 474 839 489 329 316 Spaces Moved 8034 | 1 245 225 209 298 120 469 576 258 142 681 350 351 393 47 259 684 1144 599 983 Core 503 | . . . . . . . . 16 . . . . 207 . . 254 13 . 13 Treads 333 | . 117 36 . . . . . . . . . . 15 . . 165 . . . Legs 447 | 1 128 . . . . . . 22 . . . . 71 47 178 . . . . Wheels 597 | . . 189 209 199 . . . . . . . . . . . . . . . Hover 3912 | . . . . 98 102 . . 179 142 650 . . . . . 41 1131 599 970 Flight 2242 | . . . . 1 18 469 576 41 . 31 350 351 100 . 81 224 . . . Fastest Speed 13 | 120 120 90 90 51 51 29 27 27 62 62 26 28 30 120 37 14 13 14 15 Average Speed 58 | 120 139 104 90 84 66 29 37 93 72 92 29 48 72 120 156 77 24 28 26 Slowest Speed 355 | 120 160 160 90 355 111 109 106 350 102 102 102 110 300 120 260 350 79 88 160 Overloaded Moves 461 | . . . . . . . . . . . . . . . 41 50 14 25 331 Propulsion Burnouts 1 | . . . . . . . . . . . . . . . . . . . 1 Robots Hopped 23 | . . . . . . 4 6 . . . 2 . . . 6 5 . . . Cave-ins Triggered . | . . . . . . . . . . . . . . . . . . . . Exploration Rate (%) 35 | 1 53 31 28 10 77 13 15 12 28 88 60 9 64 16 8 61 44 64 30 Regions Visited 19 Branch Regions 7 Pre-discovered Areas 2 | . . . . . . 1 . . . . 1 . . . . . . . . Known Exits Taken 3 | . . . . . . 1 . 1 . . . . . . . 1 . . . Unknown Exits Taken 14 | 1 1 1 1 . . . 1 . 1 1 1 1 1 1 1 . 1 1 . Scrap Searched 5 | . . . . . . . . . . . 1 . 4 . . . . . . Spaces Dug . | . . . . . . . . . . . . . . . . . . . . Terrain Destroyed 1201 | . . . 18 . . . 54 27 . . . 63 48 10 4 813 59 59 46 Melee . | . . . . . . . . . . . . . . . . . . . . Projectile 86 | . . . . . . . . . . . . . 16 10 4 29 22 5 . AOE 1115 | . . . 18 . . . 54 27 . . . 63 32 . . 784 37 54 46 Terrain Rammed . | . . . . . . . . . . . . . . . . . . . . Walls Destroyed . | . . . . . . . . . . . . . . . . . . . . Machines Disabled . | . . . . . . . . . . . . . . . . . . . . Actions | -11 -10 -9 -8 -7 -7 -7 -6 -5 -5 -5 -4 -4 -4 -4 -3 -3 -2 -2 -1 --------- Run | Yrd Mat Mat Mat Fac Was Fac Fac Fac Upp War Pro Fac Upp Upp Res Qua Res Tes Acc Total 9766 | . 332 275 318 376 165 690 728 379 154 768 379 423 477 65 290 942 1275 704 1026 Wait 679 | . 13 2 68 12 23 187 67 57 2 16 . 24 9 6 . 140 19 14 20 Move 7973 | . 244 224 208 298 119 461 564 257 141 680 345 350 392 46 247 674 1143 598 982 Hop 20 | . . . . . . 3 5 . . . 2 . . . 5 5 . . . Pick Up 80 | . 8 9 3 4 1 5 10 1 . 7 2 7 6 . 2 8 5 2 . Fast Attach 163 | . 2 5 4 14 2 2 7 10 . 11 1 6 15 1 8 20 28 23 4 Attach 66 | . 3 3 3 3 . 2 4 1 . 1 1 7 11 . 4 17 3 1 2 Detach 53 | . 2 . 2 1 . 1 5 3 . 2 1 2 6 . 3 14 3 6 2 Swap 59 | . 3 4 7 7 3 1 7 4 . 12 . 2 1 . . 2 6 . . Drop 156 | . 7 10 4 15 5 5 13 6 . 14 3 7 2 . 6 15 21 19 4 Fire 443 | . 36 18 19 22 12 23 46 40 11 3 24 18 31 12 15 29 39 35 10 Melee 11 | . 11 . . . . . . . . . . . . . . . . . . Ram 13 | . . . . . . . . . . . . . 4 . . . 1 6 2 Kick . | . . . . . . . . . . . . . . . . . . . . Crush 3 | . 3 . . . . . . . . . . . . . . . . . . Escape Stasis 18 | . . . . . . . . . . . . . . . . 18 . . . Rewire 29 | . . . . . . . . . . 22 . . . . . . 7 . . Trap . | . . . . . . . . . . . . . . . . . . . . Miscellaneous . | . . . . . . . . . . . . . . . . . . . . Route ------- -11/Scrapyard -10/Materials (discovered 3 exits: *Mat x2 / [*Min]) -9/Materials -8/Materials -7/Factory -7/Waste -7/Factory (discovered 4 exits: *Fac x4) -6/Factory -5/Factory (discovered 5 exits: *Fac / *Upp x2 / Ext x2) -5/Upper Caves -5/Warlord -4/Proximity Caves -4/Factory -4/Upper Caves -4/Upper Caves -3/Research (discovered 2 exits: Res / *Qua) -3/Quarantine -2/Research (discovered 3 exits: *Acc x2 / *Tes) -2/Testing -1/Access Tau Ceti IV Orbit History --------- Turn | Location | Event 1 | -11/Scrapyard | Discovered new exit (range 0) 1 | -11/Scrapyard | Entered Materials 188 | -10/Materials | Discovered new exit (range 16) 321 | -10/Materials | Build established: Mutant 354 | -10/Materials | Discovered new exit (range 7) 474 | -10/Materials | Discovered new exit (range 8) 510 | -10/Materials | Entered another Materials area 510 | -9/Materials | Evolved 2 slots: Utility x2 695 | -9/Materials | Discovered new exit (range 13) 830 | -9/Materials | Entered another Materials area 830 | -8/Materials | Evolved 2 slots: Utility x2 1028 | -8/Materials | Repaired Arm. Wheel 1055 | -8/Materials | Repaired Heat Sink 1148 | -8/Materials | Lost 3 parts (1p1u1w) 1149 | -8/Materials | Discovered new exit (range 14) 1166 | -8/Materials | Entered Factory 1166 | -7/Factory | Evolved 2 slots: Power x1, Propulsion x1 1538 | -7/Factory | Sucked down chute 1538 | -7/Factory | Entered Waste 1538 | -7/Waste | Spotted C-40 Crusher 1562 | -7/Waste | Build established: Hacker-Mutant 1562 | -7/Waste | Spotted C-40 Crusher 1571 | -7/Waste | Spotted C-40 Crusher 1576 | -7/Waste | Warlord forces began an assault 1582 | -7/Waste | Allies destroyed C-40 Crusher 1584 | -7/Waste | Allies destroyed C-40 Crusher 1592 | -7/Waste | Allies destroyed C-40 Crusher 1598 | -7/Waste | Spotted C-40 Crusher 1605 | -7/Waste | Spotted C-40 Crusher 1607 | -7/Waste | Allies destroyed C-40 Crusher 1618 | -7/Waste | Allies destroyed C-40 Crusher 1636 | -7/Waste | Spotted C-40 Crusher 1647 | -7/Waste | Allies destroyed C-40 Crusher 1652 | -7/Waste | Discovered new exit (range 17) 1678 | -7/Waste | Lost 9 allies 1685 | -7/Waste | Entered Factory 1685 | -7/Factory | Accompanied by 9 allies 1824 | -7/Factory | Identified exit to Factory 1986 | -7/Factory | Fabricated B-48 Gladiator (x3) 1988 | -7/Factory | Build established: Hacker-Sprinter 2085 | -7/Factory | Entered another Factory area 2085 | -6/Factory | Accompanied by 11 allies 2085 | -6/Factory | Evolved 2 slots: Propulsion x1, Utility x1 2222 | -6/Factory | Garrison activated, responded to threat 2359 | -6/Factory | Found Prototype Processor 2359 | -6/Factory | Identified Exp. Targeting Computer 2381 | -6/Factory | Discovered new exit (range 9) 2531 | -6/Factory | Entered another Factory area 2531 | -5/Factory | Accompanied by 3 allies 2531 | -5/Factory | Evolved 2 slots: Propulsion x1, Utility x1 2537 | -5/Factory | Discovered new exit (range 16) 2615 | -5/Factory | Fabricated Hacking Suite (x1) 2706 | -5/Factory | Lost 7 parts (1p3n2u1w) 2796 | -5/Factory | Build established: Hacker-Mutant 2831 | -5/Factory | First assault squad dispatched 2878 | -5/Factory | Identified exit to Upper Caves 2878 | -5/Factory | Identified exit to Extension 2952 | -5/Factory | Entered Upper Caves 3073 | -5/Upper Caves | A Derelict revealed a hidden shortcut to "reach the base" 3079 | -5/Upper Caves | Entered Warlord 3179 | -5/Warlord | Visited the Vortex Lab 3179 | -5/Warlord | Warlord's base attacked by MAIN.C 3182 | -5/Warlord | Found Prototype Energy Gun 3182 | -5/Warlord | Identified Vortex Shotgun 3185 | -5/Warlord | Found Vortex Shotgun 3191 | -5/Warlord | Found Prototype Energy Gun 3193 | -5/Warlord | Found Prototype Energy Gun 3194 | -5/Warlord | Identified Vortex Rail (x2) 3345 | -5/Warlord | Met Warlord 3374 | -5/Warlord | Found Prototype Hackware 3379 | -5/Warlord | Found Prototype Reactor 3390 | -5/Warlord | Found Exp. Targeting Computer 3448 | -5/Warlord | Spotted B-86 Titan 3499 | -5/Warlord | Lost 3 allies 3529 | -5/Warlord | Warlord forces counterattacked 3582 | -5/Warlord | Build established: Commander-Mutant 3720 | -5/Warlord | Opened side exit 3783 | -5/Warlord | Discovered new exit (range 13) 3801 | -5/Warlord | Entered Proximity Caves 3801 | -4/Proximity Caves | Accompanied by 3 allies 3858 | -4/Proximity Caves | Lost 3 allies 3961 | -4/Proximity Caves | Core integrity fell below 50% 3972 | -4/Proximity Caves | Learned location of Quarantine (-3) 3973 | -4/Proximity Caves | Discovered new exit (range 16) 3976 | -4/Proximity Caves | Attracted the attention of an 0b10 checkpoint 3976 | -4/Proximity Caves | Identified Vortex Chain Reactor 3981 | -4/Proximity Caves | Entered Factory 3981 | -4/Factory | Evolved 2 slots: Propulsion x1, Utility x1 3983 | -4/Factory | Identified System Mapper 4188 | -4/Factory | Discovered new exit (range 16) 4261 | -4/Factory | Entered Upper Caves 4267 | -4/Upper Caves | Attracted the attention of an 0b10 checkpoint 4336 | -4/Upper Caves | Core integrity fell below 50% 4366 | -4/Upper Caves | Lost 17 parts (1p4n8u4w) 4367 | -4/Upper Caves | Core integrity fell below 20% 4407 | -4/Upper Caves | Learned location of 1 exit from Research 4526 | -4/Upper Caves | Attacked by a faux Warlord 4568 | -4/Upper Caves | Lost 5 parts (1p1n2u1w) 4677 | -4/Upper Caves | Discovered new exit (range 4) 4682 | -4/Upper Caves | Entered another Upper Caves area 4769 | -4/Upper Caves | Discovered new exit (range 6) 4776 | -4/Upper Caves | Entered Research 4776 | -3/Research | Evolved 2 slots: Weapon x2 4777 | -3/Research | Identified exit to Research 4809 | -3/Research | Discovered new exit (range 14) 5088 | -3/Research | Build established: Derelict-Tank 5250 | -3/Research | Lost 11 parts (1p3n4u3w) 5250 | -3/Research | Entered Quarantine 5294 | -3/Quarantine | Cryocooling Duct disabled 5309 | -3/Quarantine | Ambient heat levels rising (+20) 5309 | -3/Quarantine | Non-combat units ordered to evacuate 5326 | -3/Quarantine | Found Alien Impact Weapon 5326 | -3/Quarantine | Identified Core Stripper 5369 | -3/Quarantine | Found Alien Reactor 5369 | -3/Quarantine | Identified Matter Drive 5378 | -3/Quarantine | Cryocooling Duct disabled 5393 | -3/Quarantine | Ambient heat levels rising (+20) 5393 | -3/Quarantine | Combat units ordered to evacuate 5447 | -3/Quarantine | Found Gamma Bomb Array 5493 | -3/Quarantine | Quarantine Guard activated 5552 | -3/Quarantine | Found Prototype Device 5552 | -3/Quarantine | Identified Exp. Focal Shield 5612 | -3/Quarantine | Found Alien Launcher 5630 | -3/Quarantine | Spotted Quarantine Guard 5672 | -3/Quarantine | Destroyed Quarantine Guard 5681 | -3/Quarantine | Spotted Quarantine Guard 5700 | -3/Quarantine | Met incapacitated Sigix Warrior 5700 | -3/Quarantine | Lockdown squad dispatched 5707 | -3/Quarantine | Acquired the access code to the Sigix quarantine chamber 5710 | -3/Quarantine | Unlocked Sigix quarantine chamber 5724 | -3/Quarantine | Found Sigix Containment Pod 5743 | -3/Quarantine | Spotted Quarantine Guard 5840 | -3/Quarantine | Spotted Lightning 5840 | -3/Quarantine | Spotted Lightning 5840 | -3/Quarantine | Spotted Lightning 5842 | -3/Quarantine | Identified Sigix Terminator 5844 | -3/Quarantine | Fired Sigix Terminator 5844 | -3/Quarantine | Destroyed Lightning 5844 | -3/Quarantine | Destroyed Lightning 5844 | -3/Quarantine | Destroyed Lightning 5844 | -3/Quarantine | Destroyed Quarantine Guard 5845 | -3/Quarantine | Core integrity fell below 50% 5864 | -3/Quarantine | Found Alien Artifact 5864 | -3/Quarantine | Identified Phase Armor 5875 | -3/Quarantine | Lost 5 parts (4u1w) 5876 | -3/Quarantine | Spotted Quarantine Guard 5880 | -3/Quarantine | Destroyed Quarantine Guard 5919 | -3/Quarantine | Spotted Quarantine Guard 5943 | -3/Quarantine | Spotted Quarantine Guard 5998 | -3/Quarantine | Destroyed Quarantine Guard 6032 | -3/Quarantine | Spotted Quarantine Guard 6051 | -3/Quarantine | Found Alien Artifact 6051 | -3/Quarantine | Identified Core Reset Matrix 6051 | -3/Quarantine | Used Core Reset Matrix 6055 | -3/Quarantine | Sensed 11 artifacts in vicinity 6088 | -3/Quarantine | Discovered exit to Research (range 3) 6088 | -3/Quarantine | Spotted Quarantine Guard 6089 | -3/Quarantine | Entered Research 6089 | -2/Research | Warlord forces began assault on 0b10 6089 | -2/Research | Evolved 2 slots: Propulsion x1, Utility x1 6199 | -2/Research | Research machine network offline 6362 | -2/Research | Found Unknown Device 6362 | -2/Research | Identified Quantum Capacitor 6393 | -2/Research | Found Unknown Device 6393 | -2/Research | Identified Launcher Loader 6409 | -2/Research | Met up with Warlord 6460 | -2/Research | Discovered new exit (range 8) 6468 | -2/Research | Found Unknown Device 6468 | -2/Research | Identified Quantum Capacitor 6493 | -2/Research | Spotted B-90 Cyclops 6517 | -2/Research | Discovered new exit (range 11) 6519 | -2/Research | Borebot progress halted 6554 | -2/Research | Borebot progress halted 6564 | -2/Research | Build established: Wizard-Sprinter 6576 | -2/Research | Discovered new exit (range 4) 6578 | -2/Research | Entered Testing 6599 | -2/Testing | Found Prototype Leg 6599 | -2/Testing | Identified Myomer Exoskeleton 6635 | -2/Testing | Found Prototype Launcher 6635 | -2/Testing | Identified Z-bomb Delivery System 6646 | -2/Testing | Scanned by Researcher 6659 | -2/Testing | Found Prototype Protection 6659 | -2/Testing | Identified Med. Regenerative Plating 6661 | -2/Testing | Found Prototype Protection 6661 | -2/Testing | Identified Lgt. Regenerative Plating 6664 | -2/Testing | Found Prototype Protection 6664 | -2/Testing | Identified SHELL Armor 6667 | -2/Testing | Found Prototype Protection 6667 | -2/Testing | Identified Hvy. Regenerative Plating 6760 | -2/Testing | Found Prototype Launcher 6760 | -2/Testing | Identified Enh. Gamma Bomb Array 6763 | -2/Testing | Found Prototype Launcher 6763 | -2/Testing | Identified Hellfire Missile Launcher 6772 | -2/Testing | Lost 3 allies 6784 | -2/Testing | Spotted Striker 6784 | -2/Testing | Spotted Striker 6869 | -2/Testing | Destroyed Striker 6883 | -2/Testing | Spotted Alpha 7 6903 | -2/Testing | Discovered new exit (range 16) 6907 | -2/Testing | Entered Access 6907 | -1/Access | Evolved 2 slots: Propulsion x1, Weapon x1 6914 | -1/Access | Energy Cycler disabled 6999 | -1/Access | Fabricated G-73 Enforcer? 7038 | -1/Access | Garrison activated, responded to threat 7063 | -1/Access | Found Prototype Processor 7063 | -1/Access | Identified Spectral Analyzer 7087 | -1/Access | Garrison activated, responded to threat 7132 | -1/Access | Build established: Hacker-Sprinter 7157 | -1/Access | First assault squad dispatched 7179 | -1/Access | Spotted B-99 Colossus 7220 | -1/Access | Discovered new exit (range 6) 7223 | *** | Destroyed 0b10! Last Messages --------------- 07149_ The unstable cave ceiling collapses. 07153_ Slug penetrates Wall. 07156_ Penetrated by Slug. 07157_ ALERT: Significant disruption in Zone 2H, assault force dispatched. 07159_ System corrupted: Matter fused (-8). 07165_ Backup Laser VII destroyed. 07181_ System corrupted: Component data lost. 07183_ Slug penetrates Fabricator. 07183_ Penetrated by Slug. 07183_ Slug penetrates Wall. 07185_ Cld. Antigrav System destroyed. 07185_ Cld. Antigrav System burned out. 07188_ Dropped SHELL Armor. 07204_ System corrupted: Matter fused (-8). 07214_ Cld. Linear Gravjet destroyed. 07214_ Cmb. Linear Gravjet destroyed. 07216_ Dropped Quantum Reactor. 07219_ KI#HNCCNHLRSHTD6